Cogmind - Beta 14 @@@ ROGUE MODE // 2025.03.14 @ 18:43:29 Player: Pastel Celery Result: Destroyed by Y-54 Guardian with Gatling Laser Performance ------------- Evolutions (3) 1500 Regions Visited (6) 1200 Robots Destroyed (45) 225 Value Destroyed (1431) 1431 Prototype IDs (3) 60 Alien Tech Used (0) 0 Bonus (0) 0 TOTAL SCORE: 4416 Bonus ------- None Cogmind --------- Core Integrity 0/700 Matter 260/300 Energy 98/100 System Corruption 0% Temperature Cool (12) Movement Core (50) Location -7/Factory Parts ------- > --- POWER (2) -------- (None) > --- PROPULSION (3) --- (None) > --- UTILITY (5) ------ (None) > --- WEAPON (3) ------- (None) > --- INVENTORY (5) ---- Light Ion Engine Light Ion Engine Light Nuclear Core Aluminum Leg Sensor Array Peak State ------------ > --- POWER ------------ Improved Deuterium Engine Improved Deuterium Engine > --- PROPULSION ------- Light Treads Light Treads > --- UTILITY ---------- Improved Heat Sink Large Storage Unit Medium Battery Compact Matter Pod Hardened Medium Armor Plating > --- WEAPON ----------- Gauss Rifle EMP Blaster Improved Grenade Launcher > --- INVENTORY -------- Light Ion Engine Light Ion Engine Light Nuclear Core Light Nuclear Core Aluminum Leg Carbon-fiber Leg Sensor Array Advanced Beam Rifle EMP Blaster Improved Grenade Launcher [Rating: 32] Favorites ----------- Power Ion Engine Engine Ion Engine Power Core Light Nuclear Core Propulsion Light Treads Treads Light Treads Utility Large Storage Unit Device Sensor Array Storage Large Storage Unit Protection Hardened Medium Armor Plating Weapon Advanced Beam Rifle Energy Gun Advanced Beam Rifle Energy Cannon Beam Cannon Ballistic Gun Assault Rifle Launcher Grenade Launcher Build | -11 -10 -10 -9 -9 -8 -7 ------- Run | Yrd Mat Min Mat Sto Mat Fac Slots Evolved 6 | . . . 2 . 2 2 Power 1 | . . . 1 . . . Propulsion 1 | . . . 1 . . . Utility 3 | . . . . . 1 2 Weapon 1 | . . . . . 1 . Parts Attached 43 | 6 6 . 1 5 19 6 Power 9 | 1 1 . 1 . 4 2 Engine 6 | 1 1 . 1 . 1 2 Core 3 | . . . . . 3 . Reactor . | . . . . . . . Propulsion 5 | 2 . . . 1 2 . Treads 5 | 2 . . . 1 2 . Leg . | . . . . . . . Wheel . | . . . . . . . Hover . | . . . . . . . Flight . | . . . . . . . Utility 11 | 1 3 . . 2 3 2 Device 4 | . 1 . . 2 1 . Storage 5 | 1 2 . . . . 2 Processor . | . . . . . . . Hackware . | . . . . . . . Protection 2 | . . . . . 2 . Artifact . | . . . . . . . Weapon 18 | 2 2 . . 2 10 2 Energy Gun 5 | . . . . . 5 . Energy Cannon 5 | . 1 . . 2 2 . Ballistic Gun 3 | 2 . . . . 1 . Ballistic Cannon . | . . . . . . . Launcher 5 | . 1 . . . 2 2 Special Weapon . | . . . . . . . Impact Weapon . | . . . . . . . Slashing Weapon . | . . . . . . . Piercing Weapon . | . . . . . . . Special Melee Weapon . | . . . . . . . Unidentified Prototypes 3 | . . . . 1 2 . Parts Lost 21 | . . . . . 7 14 Power 4 | . . . . . 2 2 Propulsion 4 | . . . . . 2 2 Utility 6 | . . . . . 1 5 Weapon 7 | . . . . . 2 5 Highest Loss Streak 14 | . . . . . 3 14 To Critical Strikes . | . . . . . . . Average Slot Usage (%) 92 | . 99 100 88 89 91 81 Engine 12 | . 14 14 22 22 10 3 Core 3 | . . . . . 6 10 Treads 22 | . 28 28 22 23 20 13 Device 10 | . 11 14 11 11 10 6 Storage 13 | . 16 14 11 11 9 20 Protection 3 | . . . . . 7 5 Energy Gun 3 | . . . . . 12 . Energy Cannon 7 | . 8 14 11 10 5 . Ballistic Gun 4 | . 17 . . . 1 6 Launcher 9 | . 2 14 11 11 7 13 Peak Build Rating 32 | 6 8 8 8 14 26 32 Average Rating 15 | 4 7 8 8 11 22 26 On Entrance 9 | . 6 8 8 8 12 25 Naked Turns 9 | . . . . . . 9 Heaviest Build 66 | 12 37 32 35 40 53 66 Greatest Support 60 | 40 40 40 40 60 60 40 Greatest Overweight (x) 13 | . . . . . 1 13 Average Overweight (x) . | . . . . . . 1 Largest Inventory Capacity 15 | 8 15 15 15 15 15 15 Average Capacity 14 | 7 14 15 15 15 15 14 Most Carried 15 | 3 12 10 9 13 15 10 Average Carried 9 | 1 7 10 9 12 11 8 Final Capacity 15 | 8 15 15 15 15 15 5 Final Carried 13 | 2 10 10 9 13 9 5 Class Distribution -------------------- 55% | Mutant 24% | Scavenger-Tank 7% | Scavenger-Bomber 6% | Skirmisher 4% | Scavenger-Skirmisher Dominant Class ---------------- Mutant | -10/Materials Mutant | -10/Mines Mutant | -9/Materials Mutant | -9/Storage Scavenger-Bomber | -8/Materials Scavenger-Tank | -7/Factory Resources | -11 -10 -10 -9 -9 -8 -7 ----------- Run | Yrd Mat Min Mat Sto Mat Fac Matter Collected 1048 | 216 191 . . 181 411 49 Remotely . | . . . . . . . Salvage Created 1748 | . 336 . . 130 989 293 Parts 94 | . 17 . . 8 57 12 Haulers Intercepted . | . . . . . . . Recyclers Shooed . | . . . . . . . Parts Field Recycled . | . . . . . . . Retrieved Matter . | . . . . . . . Parts Self-Destructed . | . . . . . . . Prevented . | . . . . . . . Kills | -11 -10 -10 -9 -9 -8 -7 ------- Run | Yrd Mat Min Mat Sto Mat Fac Combat Hostiles Destroyed 28 | . 4 . . 6 14 4 Guns 13 | . 4 . . . 8 1 Cannons 3 | . . . . 1 2 . AOE 12 | . . . . 5 4 3 Classes Destroyed 9 | . 4 . . 2 3 . Worker 5 | . 2 . . . . 3 Builder 3 | . . . . . 2 1 Recycler 2 | . 1 . . . 1 . Watcher 7 | . 2 . . . 3 2 Swarmer 6 | . . . . 3 . 3 Grunt 12 | . 4 . . . 8 . Sentry 6 | . . . . 3 3 . Hunter 3 | . . . . . 2 1 Heavy 1 | . . . . . 1 . Best Kill Streak 5 | . 3 . . 4 5 3 Combat Bots Only 4 | . 2 . . 4 3 2 Max Kills in Single Turn 3 | . 1 . . 2 2 3 Gunslinging . | . . . . . . . Exploded 2 | . . . . 2 1 2 Melee . | . . . . . . . Uniques/NPCs Destroyed . | . . . . . . . Combat | -11 -10 -10 -9 -9 -8 -7 -------- Run | Yrd Mat Min Mat Sto Mat Fac Hostile Shots Fired 493 | . 22 . . 32 97 342 Missed 175 | . 7 . . 8 29 131 Damage Taken 3444 | . 198 . . 272 1094 1880 Core 919 | . 15 . . 47 153 704 Absorbed by Shields . | . . . . . . . Redirected to Shielding 54 | . . . . . 54 . Regen/Repaired (Parts) 96 | . . . . 96 . . Core Remaining (%) 88 | 100 . 94 . 88 72 . Volleys Fired 116 | . 23 . . 17 51 25 Largest 3 | . 2 . . 2 3 3 Hottest 178 | . 80 . . 90 178 97 Shots Fired 215 | . 46 . . 24 103 42 Gun 124 | . 29 . . . 72 23 Cannon 54 | . 17 . . 17 20 . Launcher 37 | . . . . 7 11 19 Special . | . . . . . . . Kinetic 56 | . 29 . . . 4 23 Thermal 102 | . 17 . . 14 71 . Explosive 18 | . . . . 7 2 9 Electromagnetic 39 | . . . . 3 26 10 Robot Hit Streak 8 | . 5 . . 6 8 3 Robot Miss Streak 6 | . 4 . . 5 6 5 Penetration Max . | . . . . . . . Secondary Targets . | . . . . . . . Shots Hit Robots 121 | . 26 . . 14 61 20 Core Hits 75 | . 13 . . 11 38 13 Critical Kills . | . . . . . . . Critical Parts Destroyed . | . . . . . . . Critical Strikes 3 | . . . . . 3 . Burn 2 | . . . . . 2 . Corrupt 1 | . . . . . 1 . Melee Attacks . | . . . . . . . Impact . | . . . . . . . Slashing . | . . . . . . . Piercing . | . . . . . . . Sneak Attacks . | . . . . . . . Combat Hostiles . | . . . . . . . Follow-up Attacks . | . . . . . . . Damage Inflicted 3479 | . 429 5 . 384 1658 1003 Guns 1464 | . 236 . . . 1016 212 Cannons 679 | . 193 . . 178 308 . Explosions 1331 | . . . . 206 334 791 Melee . | . . . . . . . Ramming 5 | . . 5 . . . . Kinetic 504 | . 236 . . . 56 212 Thermal 1447 | . 193 . . 141 1113 . Explosive 713 | . . . . 206 21 486 Electromagnetic 810 | . . . . 37 468 305 Impact . | . . . . . . . Slashing . | . . . . . . . Piercing . | . . . . . . . Highest Corruption 6 | . . . . 6 3 . Average Corruption 3 | . . . . 3 3 . Corruption Purged . | . . . . . . . Corruption Blocked . | . . . . . . . Effects 23 | . . . . 11 12 . Message Errors 5 | . . . . 3 2 . Matter Fused 6 | . . . . 2 4 . Heat Flow Errors 3 | . . . . 2 1 . Energy Discharges 4 | . . . . 2 2 . Parts Fused 1 | . . . . 1 . . Data Loss (minor) 2 | . . . . 1 1 . Misfires 1 | . . . . . 1 . Alerts 1 | . . . . . 1 . Overload Shots . | . . . . . . . Overflow Damage 77 | . . . . . 34 43 Projectiles 34 | . . . . . 34 . Explosions 43 | . . . . . . 43 Melee . | . . . . . . . Knockbacks . | . . . . . . . Impact . | . . . . . . . Kinetic . | . . . . . . . Secondary . | . . . . . . . Self-Inflicted Damage 89 | . . . . . 11 78 Shots 5 | . . . . . 1 4 Rammed 1 | . . 1 . . . . Targets Rammed 1 | . . 1 . . . . Kicked . | . . . . . . . Crushed . | . . . . . . . Highest Temperature 566 | . 240 . . 318 566 27 Average Temperature 132 | . 90 . . 120 169 10 Received Heat Transfer 987 | . 114 . . 54 423 396 Effects 13 | . . . . . 13 . Shutdowns 5 | . . . . . 5 . Energy Bleed 3 | . . . . . 3 . Interference 5 | . . . . . 5 . Siege Activations . | . . . . . . . Robots Corrupted . | . . . . . . . Combat Hostiles . | . . . . . . . Parts Fried 3 | . . . . . 3 . Impact Corruptions . | . . . . . . . Robots Melted . | . . . . . . . Combat Hostiles . | . . . . . . . Parts Melted 5 | . . . . 1 4 . Heat Transferred 2814 | . 407 . . 296 2111 . Parts Sabotaged . | . . . . . . . Parts Stolen . | . . . . . . . Parts Stripped . | . . . . . . . Power Chain Reactions 3 | . . . . . 3 . Alert | -11 -10 -10 -9 -9 -8 -7 ------- Run | Yrd Mat Min Mat Sto Mat Fac Peak Influence 262 | . 77 30 . 248 257 262 Initial 97 | . . 30 . . 20 97 Average 98 | . 32 28 . 144 120 163 Maximum Alert Level 1 | . . . . 1 1 1 Low Security (%) 82 | 100 100 100 100 53 84 70 Level 1 17 | . . . . 46 15 29 Level 2 . | . . . . . . . Level 3 . | . . . . . . . Level 4 . | . . . . . . . Level 5 . | . . . . . . . High Security . | . . . . . . . Max Security . | . . . . . . . Squads Dispatched 10 | . 3 . . . 3 4 Investigation 4 | . 2 . . . 1 1 Extermination . | . . . . . . . Reinforcement 4 | . 1 . . . 2 1 Assault . | . . . . . . . Garrison 2 | . . . . . . 2 Intercept . | . . . . . . . Searches Triggered . | . . . . . . . Construction Impeded 1 | . . . . . 1 . Haulers Reinforced . | . . . . . . . Active Scanning Responses . | . . . . . . . Cargo Convoy Interrupts . | . . . . . . . Stealth | -11 -10 -10 -9 -9 -8 -7 --------- Run | Yrd Mat Min Mat Sto Mat Fac Distress Signals 1 | . 1 . . . . . Communications Jammed . | . . . . . . . Distress Signals . | . . . . . . . Times Spotted 44 | . 8 . . 5 21 10 Peak Tracking Total 6 | . 3 . . 4 6 4 Tactical Retreats 1 | . . . . 1 . . Traps | -11 -10 -10 -9 -9 -8 -7 ------- Run | Yrd Mat Min Mat Sto Mat Fac Traps Triggered 7 | . 2 . . 4 1 . Indirectly 1 | . . . . . 1 . Trap Hack Attempts . | . . . . . . . Triggered . | . . . . . . . Disarmed . | . . . . . . . Reprogrammed . | . . . . . . . Reused . | . . . . . . . Traps Extracted . | . . . . . . . Installed . | . . . . . . . Triggered . | . . . . . . . Machines | -11 -10 -10 -9 -9 -8 -7 ---------- Run | Yrd Mat Min Mat Sto Mat Fac Machines Disabled 11 | . 1 . . 1 . 9 Max in Single Turn 2 | . 1 . . 1 . 2 Machines Repaired . | . . . . . . . Machines Dismantled . | . . . . . . . Machines Sabotaged . | . . . . . . . Overloaded Fab Kills . | . . . . . . . Hacking | -11 -10 -10 -9 -9 -8 -7 --------- Run | Yrd Mat Min Mat Sto Mat Fac Machines Accessed 3 | . . . . 2 . 1 Terminals 1 | . . . . 1 . . Fabricators . | . . . . . . . Repair Stations 2 | . . . . 1 . 1 Recycling Units . | . . . . . . . Scanalyzers . | . . . . . . . Garrison Access . | . . . . . . . Total Hacks 7 | . . . . 6 . 1 Successful 3 | . . . . 3 . . Failed 4 | . . . . 3 . 1 Catastrophic . | . . . . . . . Database Lockouts . | . . . . . . . Manual . | . . . . . . . Terminals 2 | . . . . 2 . . Fabricators . | . . . . . . . Repair Stations 5 | . . . . 4 . 1 Recycling Units . | . . . . . . . Scanalyzers . | . . . . . . . Garrison Access . | . . . . . . . Terminal Hacks 1 | . . . . 1 . . Open Door 1 | . . . . 1 . . Fabricator Hacks . | . . . . . . . Repair Station Hacks 2 | . . . . 2 . . Scan Component 1 | . . . . 1 . . Repair 1 | . . . . 1 . . Recycling Unit Hacks . | . . . . . . . Scanalyzer . | . . . . . . . Garrison Access Hacks . | . . . . . . . Unauthorized Hacks . | . . . . . . . Terminals . | . . . . . . . Fabricators . | . . . . . . . Repair Stations . | . . . . . . . Recycling Units . | . . . . . . . Scanalyzers . | . . . . . . . Garrison Access . | . . . . . . . Data Cores Recovered . | . . . . . . . Used . | . . . . . . . Hacking Detections 1 | . . . . 1 . . Full Trace Events . | . . . . . . . Feedback Events . | . . . . . . . Feedback Blocked . | . . . . . . . Robot Schematics Acquired . | . . . . . . . Robots Built . | . . . . . . . Authchips . | . . . . . . . Time . | . . . . . . . Total Robot Build Rating . | . . . . . . . Part Schematics Acquired . | . . . . . . . Parts Built . | . . . . . . . Authchips . | . . . . . . . Time . | . . . . . . . Total Part Build Rating . | . . . . . . . Parts Repaired 1 | . . . . 1 . . Time 26 | . . . . 26 . . Parts Recycled . | . . . . . . . Recycled Matter . | . . . . . . . Retrieved Matter . | . . . . . . . Retrieved Components . | . . . . . . . Parts Scanalyzed . | . . . . . . . Part Schematics Acquired . | . . . . . . . Parts Damaged . | . . . . . . . Bothacking | -11 -10 -10 -9 -9 -8 -7 ------------ Run | Yrd Mat Min Mat Sto Mat Fac Used RIF Installer . | . . . . . . . Robots Hacked . | . . . . . . . Non-combat . | . . . . . . . Combat . | . . . . . . . Robot Hacks Applied . | . . . . . . . Relay Couplers Released . | . . . . . . . Fabnet Peak Effective % . | . . . . . . . Robots Rewired . | . . . . . . . Allies Hacked . | . . . . . . . Hacks Repelled . | . . . . . . . Allies | -11 -10 -10 -9 -9 -8 -7 -------- Run | Yrd Mat Min Mat Sto Mat Fac Total Allies 1 | . . 1 . . . . Largest Group 1 | . . 1 . . . . Highest-Rated Group 31 | . . 31 . . . . Highest-Rated Ally 31 | . . 31 . . . . Total Orders . | . . . . . . . Ally Attacks . | . . . . . . . Total Damage . | . . . . . . . Kills . | . . . . . . . Allies Corrupted . | . . . . . . . Allies Melted . | . . . . . . . Intel | -11 -10 -10 -9 -9 -8 -7 ------- Run | Yrd Mat Min Mat Sto Mat Fac Robot Analysis Total . | . . . . . . . Derelict Logs Recovered 1 | . . 1 . . . . Drone Launches 2 | . . . . 2 . . Drone Recoveries . | . . . . . . . Exploration | -11 -10 -10 -9 -9 -8 -7 ------------- Run | Yrd Mat Min Mat Sto Mat Fac Turns Passed 2842 | 74 553 418 13 453 782 549 Spaces Moved 1364 | 45 285 261 8 246 314 205 Core 39 | 10 . . . . . 29 Treads 1325 | 35 285 261 8 246 314 176 Legs . | . . . . . . . Wheels . | . . . . . . . Hover . | . . . . . . . Flight . | . . . . . . . Fastest Speed 50 | 50 160 160 160 160 160 50 Average Speed 176 | 135 160 160 160 160 188 232 Slowest Speed 700 | 160 160 160 160 160 240 700 Overloaded Moves . | . . . . . . . Propulsion Burnouts . | . . . . . . . Robots Hopped . | . . . . . . . Cave-ins Triggered . | . . . . . . . Exploration Rate (%) 22 | 4 34 53 2 28 32 7 Regions Visited 6 Branch Regions 2 Pre-discovered Areas 1 | . . 1 . . . . Known Exits Taken . | . . . . . . . Unknown Exits Taken 6 | 1 1 1 1 1 1 . Scrap Searched . | . . . . . . . Spaces Dug . | . . . . . . . Terrain Destroyed 127 | . . . . 38 21 68 Melee . | . . . . . . . Projectile . | . . . . . . . AOE 127 | . . . . 38 21 68 Terrain Rammed . | . . . . . . . Walls Destroyed . | . . . . . . . Machines Disabled . | . . . . . . . Actions | -11 -10 -10 -9 -9 -8 -7 --------- Run | Yrd Mat Min Mat Sto Mat Fac Total 1613 | 58 337 261 8 282 426 241 Wait 19 | . 7 . . 6 6 . Move 1358 | 44 284 260 7 245 313 205 Hop . | . . . . . . . Pick Up 52 | 8 12 . . 7 21 4 Fast Attach . | . . . . . . . Attach 29 | 6 3 . 1 3 12 4 Detach 2 | . 2 . . . . . Swap 14 | . 3 . . 2 7 2 Drop 22 | . 3 . . 2 16 1 Fire 116 | . 23 . . 17 51 25 Melee . | . . . . . . . Ram . | . . . . . . . Kick . | . . . . . . . Crush 1 | . . 1 . . . . Escape Stasis . | . . . . . . . Rewire . | . . . . . . . Trap . | . . . . . . . Miscellaneous . | . . . . . . . Route ------- -11/Scrapyard -10/Materials -10/Mines -9/Materials -9/Storage -8/Materials -7/Factory History --------- Turn | Location | Event 4 | -11/Scrapyard | Discovered new exit (range 15) 75 | -11/Scrapyard | Entered Materials 301 | -10/Materials | Build established: Mutant 502 | -10/Materials | Discovered new exit (range 13) 628 | -10/Materials | Entered Mines 780 | -10/Mines | Received a Mining Laser from a helpful Derelict 1012 | -10/Mines | Learned location of Zion (-7) 1027 | -10/Mines | Discovered new exit (range 14) 1046 | -10/Mines | Entered Materials 1046 | -9/Materials | Accompanied by 1 ally 1046 | -9/Materials | Evolved 2 slots: Power x1, Propulsion x1 1047 | -9/Materials | Discovered new exit (range 7) 1059 | -9/Materials | Entered Storage 1321 | -9/Storage | Repaired Lgt. Treads? 1487 | -9/Storage | Discovered new exit (range 16) 1512 | -9/Storage | Entered Materials 1512 | -8/Materials | Evolved 2 slots: Utility x1, Weapon x1 2077 | -8/Materials | Discovered new exit (range 12) 2173 | -8/Materials | Lost 3 parts (2p1n) 2294 | -8/Materials | Entered Factory 2294 | -7/Factory | Evolved 2 slots: Utility x2 2506 | -7/Factory | Build established: Scavenger-Tank 2720 | -7/Factory | Garrison activated, responded to threat 2800 | -7/Factory | Core integrity fell below 50% 2822 | -7/Factory | Core integrity fell below 20% 2843 | -7/Factory | Destroyed by Y-54 Guardian with Gatling Laser Last Messages --------------- Slug penetrates S-27 Virus. EMP Blaster destroyed. S-27 Virus destroyed. Slug penetrates S-27 Virus. S-27 Virus destroyed. Acquired 23 matter. The unstable cave ceiling collapses. Lgt. Treads destroyed. The unstable cave ceiling collapses. Lgt. Treads destroyed. Gauss Rifle destroyed. Imp. Heat Sink destroyed. Med. Battery destroyed. Imp. Grenade Launcher destroyed. Imp. Deuterium Engine destroyed. Manufacturing Mainframe disabled. Imp. Grenade Launcher destroyed. EMP Blaster destroyed. Lrg. Storage Unit destroyed. Extracted 2 matter. Map ----- +----------------------------------------------------+ | ####### #?????# # | | ??????# # = #######+## + | | ??????????##### # # # # | | ?????????????# # #| =% # # | | ?????????????## ## # # # | | ??????????????# #### """"""" # # ! | | ??????????????#+#??#"" """"""" # # | | ???????????????????# """"""" + ######### | | ???????????????????# # """"""" # #???????? | | ???????????????????# %* # # #???????? | | ???????????????????# ! ########### #???????? | | ???????????????????# #???????? | | ???????????????????? ##### ###?### ######### | | ?????????????????????????? #?????# ^""" # | | ?????????????????????????? #?????#^ """ # | | ?????????????????????????????????# """ # """ | | ?????????????????????????????????# """" | | ?????????????????????????????????#^ ===# """" | | ?????????????????????????????????#^ == *" [ | | ?????????????????????????????????# == =% | | ?????????????????????????????????# " | | ?????????????????????????????????# "" " | | ?????????????????????????????????# "F %% " | | ?????????????????????????????????# " # "" | | ????????????????#######+########## """ ! [=* | | ?????????? k @ [ """=%######### | | ?????????? t | | ?????????? Y #######?? | | ??????????? #########+##############/###???????? | | ????????????????????????????????????? ????????? | | ????????????????????????????????????? ???????? | | ???????????????????????????????????? #??????? | | ???????????????????????????????????? #??????? | | ??????????????????????????????????? #??????? | | ??????????????????????????????????? #??????? | | ?????????????????????????????????? #??????? | | ?????????????????????????????????? #??????? | | ?????????????????????????????????# #??????? | | ?????????????????????????????????##########??????? | | ?????????????????????????????????????????????????? | | ?????????????????????????????????????????????????? | | ?????????????????????????????????????????????????? | | ?????????????????????????????????????????????????? | | ?????????????????????????????????????????????????? | | ?????????????????????????????????????????????????? | | ?????????????????????????????????????????????????? | | ?????????????????????????????????????????????????? | | ?????????????????????????????????????????????????? | | ?????????????????????????????????????????????????? | | ?????????????????????????????????????????????????? | +----------------------------------------------------+ Best States ------------- Heat Dissipation 48 Energy Generation 27 Energy Capacity 630 Matter Stores 430 Matter Capacity 450 Sight Range 16 Robot Scan Range 14 Terrain Scan Density 10 Armor Coverage 225 Propulsion Shielding 33 Evasion (%) 50 Recoil Reduction 3 Item Schematics ----------------- None Robot Schematics ------------------ None Fabricated ------------ Nothing Alien Tech Used ----------------- None Achievements -------------- None Challenges ------------ None Game ------ Seed HypercooledUltimatePod Manual? 0 Play Time 00:34:58 Cumulative 4.2 hours Start 2025.03.14 @ 18:04:49 End 2025.03.14 @ 18:43:29 Sessions 1 Manual Loads 0 Difficulty Rogue Special Mode None Game No. 5 Rogue 5 Adventurer 0 Explorer 0 Win Type - Total 0 Types 0/0/0/0/0/0/0/0/0 Lore% 0 Gallery% 8 Achievement% 7 Wizard Run 0 Options --------- Layout 0 ASCII 0 Keyboard 0 Movement Mouse Keybinds 0 Fullscreen 1 Font 24/Smallcaps Map View 76x50 Zoom Use 0% Tactical HUD 0 Map Filters NONE Filters NONE Steam 1 RUN: 08e94863-8984-4470-8330-9f4d194aa43e